Workbook

Sheet Данные
A2: Название | B2: Аптека "Омега"
A3: Заказ № | B3: 1833
A4: Тираж (количество) | B4: 1000
A5: Количество в коробке | B5: 250
A6: Дата | B6: 2014-04-06
B7: Сторона А | C7: Сторона Б
A8: Пластик (белый, перламутровый)
A9: Поверхность (глянцевая, матовая)
A10: Нумерация от | C10: 501
A11: Нумерация. Количество знаков | C11: 4
A12: ШК. Значение | C12: 290121000000
B13: 000000000000 — 12 знаков | C13: 000000000000 — 12 знаков
A14: МП. Значение | C14: 290121000000
A15: Эмбоссирование. (крупное, мелкое)
A16: Эмбоссирование. (нумерация, другое)
A17: Эмбоссирование. (золото, серебро)
A18: Дополнительно

Sheet Этикетка
A1: № коробки | B1: Название | C1: № заказа | D1: Тираж | E1: В коробке | F1: №№ от | G1: №№ до | H1: Дата | I1: @Превью А | J1: @Логотип | K1: Нумерация от | L1: Нумерация до
A2: =Данные!B4/Данные!B5 -> 4 | B2: =Данные!B$2 -> Аптека "Омега" | C2: =Данные!B$3 -> 1833 | D2: =Данные!B$4 -> 1000 | E2: =Данные!B$5 -> 250 | F2: =MID(K2,IF(Данные!$B$10=0,Бланк!$AI$2,Бланк!$AF$2),Данные!$C$11) -> 0501 | G2: =MID(L2,IF(Данные!$B$10=0,Бланк!$AI$2,Бланк!$AF$2),Данные!$C$11) -> 0750 | H2: =Данные!B$6 -> 2014-04-06 | I2: Превью А.jpg | J2: Логотип.png | K2: =IF(Данные!$B$10=0,Данные!$C$10,Данные!$B$10)+1000000000 -> 1000000501 | L2: =K2+Данные!$B$5-1 -> 1000000750
A3: =A2-1 -> 3 | B3: =Данные!B$2 -> Аптека "Омега" | C3: =Данные!B$3 -> 1833 | D3: =Данные!B$4 -> 1000 | E3: =Данные!B$5 -> 250 | F3: =MID(K3,IF(Данные!$B$10=0,Бланк!$AI$2,Бланк!$AF$2),Данные!$C$11) -> 0751 | G3: =MID(L3,IF(Данные!$B$10=0,Бланк!$AI$2,Бланк!$AF$2),Данные!$C$11) -> 1000 | H3: =Данные!B$6 -> 2014-04-06 | I3: Превью А.jpg | J3: Логотип.png | K3: =K2+Данные!$B$5 -> 1000000751 | L3: =K3+Данные!$B$5-1 -> 1000001000
A4: 2 | B4: =Данные!B$2 -> Аптека "Омега" | C4: =Данные!B$3 -> 1833 | D4: =Данные!B$4 -> 1000 | E4: =Данные!B$5 -> 250 | F4: =MID(K4,IF(Данные!$B$10=0,Бланк!$AI$2,Бланк!$AF$2),Данные!$C$11) -> 1001 | G4: =MID(L4,IF(Данные!$B$10=0,Бланк!$AI$2,Бланк!$AF$2),Данные!$C$11) -> 1250 | H4: =Данные!B$6 -> 2014-04-06 | I4: Превью А.jpg | J4: Логотип.png | K4: =K3+Данные!$B$5 -> 1000001001 | L4: =K4+Данные!$B$5-1 -> 1000001250
A5: 1 | B5: =Данные!B$2 -> Аптека "Омега" | C5: =Данные!B$3 -> 1833 | D5: =Данные!B$4 -> 1000 | E5: =Данные!B$5 -> 250 | F5: =MID(K5,IF(Данные!$B$10=0,Бланк!$AI$2,Бланк!$AF$2),Данные!$C$11) -> 1251 | G5: =MID(L5,IF(Данные!$B$10=0,Бланк!$AI$2,Бланк!$AF$2),Данные!$C$11) -> 1500 | H5: =Данные!B$6 -> 2014-04-06 | I5: Превью А.jpg | J5: Логотип.png | K5: =K4+Данные!$B$5 -> 1000001251 | L5: =K5+Данные!$B$5-1 -> 1000001500
A6: 0 | B6: =Данные!B$2 -> Аптека "Омега" | C6: =Данные!B$3 -> 1833 | D6: =Данные!B$4 -> 1000 | E6: =Данные!B$5 -> 250 | F6: =MID(K6,IF(Данные!$B$10=0,Бланк!$AI$2,Бланк!$AF$2),Данные!$C$11) -> 1501 | G6: =MID(L6,IF(Данные!$B$10=0,Бланк!$AI$2,Бланк!$AF$2),Данные!$C$11) -> 1750 | H6: =Данные!B$6 -> 2014-04-06 | I6: Превью А.jpg | J6: Логотип.png | K6: =K5+Данные!$B$5 -> 1000001501 | L6: =K6+Данные!$B$5-1 -> 1000001750
A7: -1 | B7: =Данные!B$2 -> Аптека "Омега" | C7: =Данные!B$3 -> 1833 | D7: =Данные!B$4 -> 1000 | E7: =Данные!B$5 -> 250 | F7: =MID(K7,IF(Данные!$B$10=0,Бланк!$AI$2,Бланк!$AF$2),Данные!$C$11) -> 1751 | G7: =MID(L7,IF(Данные!$B$10=0,Бланк!$AI$2,Бланк!$AF$2),Данные!$C$11) -> 2000 | H7: =Данные!B$6 -> 2014-04-06 | I7: Превью А.jpg | J7: Логотип.png | K7: =K6+Данные!$B$5 -> 1000001751 | L7: =K7+Данные!$B$5-1 -> 1000002000
A8: -2 | B8: =Данные!B$2 -> Аптека "Омега" | C8: =Данные!B$3 -> 1833 | D8: =Данные!B$4 -> 1000 | E8: =Данные!B$5 -> 250 | F8: =MID(K8,IF(Данные!$B$10=0,Бланк!$AI$2,Бланк!$AF$2),Данные!$C$11) -> 2001 | G8: =MID(L8,IF(Данные!$B$10=0,Бланк!$AI$2,Бланк!$AF$2),Данные!$C$11) -> 2250 | H8: =Данные!B$6 -> 2014-04-06 | I8: Превью А.jpg | J8: Логотип.png | K8: =K7+Данные!$B$5 -> 1000002001 | L8: =K8+Данные!$B$5-1 -> 1000002250
A9: -3 | B9: =Данные!B$2 -> Аптека "Омега" | C9: =Данные!B$3 -> 1833 | D9: =Данные!B$4 -> 1000 | E9: =Данные!B$5 -> 250 | F9: =MID(K9,IF(Данные!$B$10=0,Бланк!$AI$2,Бланк!$AF$2),Данные!$C$11) -> 2251 | G9: =MID(L9,IF(Данные!$B$10=0,Бланк!$AI$2,Бланк!$AF$2),Данные!$C$11) -> 2500 | H9: =Данные!B$6 -> 2014-04-06 | I9: Превью А.jpg | J9: Логотип.png | K9: =K8+Данные!$B$5 -> 1000002251 | L9: =K9+Данные!$B$5-1 -> 1000002500
A10: -4 | B10: =Данные!B$2 -> Аптека "Омега" | C10: =Данные!B$3 -> 1833 | D10: =Данные!B$4 -> 1000 | E10: =Данные!B$5 -> 250 | F10: =MID(K10,IF(Данные!$B$10=0,Бланк!$AI$2,Бланк!$AF$2),Данные!$C$11) -> 2501 | G10: =MID(L10,IF(Данные!$B$10=0,Бланк!$AI$2,Бланк!$AF$2),Данные!$C$11) -> 2750 | H10: =Данные!B$6 -> 2014-04-06 | I10: Превью А.jpg | J10: Логотип.png | K10: =K9+Данные!$B$5 -> 1000002501 | L10: =K10+Данные!$B$5-1 -> 1000002750
A11: -5 | B11: =Данные!B$2 -> Аптека "Омега" | C11: =Данные!B$3 -> 1833 | D11: =Данные!B$4 -> 1000 | E11: =Данные!B$5 -> 250 | F11: =MID(K11,IF(Данные!$B$10=0,Бланк!$AI$2,Бланк!$AF$2),Данные!$C$11) -> 2751 | G11: =MID(L11,IF(Данные!$B$10=0,Бланк!$AI$2,Бланк!$AF$2),Данные!$C$11) -> 3000 | H11: =Данные!B$6 -> 2014-04-06 | I11: Превью А.jpg | J11: Логотип.png | K11: =K10+Данные!$B$5 -> 1000002751 | L11: =K11+Данные!$B$5-1 -> 1000003000
A12: -6 | B12: =Данные!B$2 -> Аптека "Омега" | C12: =Данные!B$3 -> 1833 | D12: =Данные!B$4 -> 1000 | E12: =Данные!B$5 -> 250 | F12: =MID(K12,IF(Данные!$B$10=0,Бланк!$AI$2,Бланк!$AF$2),Данные!$C$11) -> 3001 | G12: =MID(L12,IF(Данные!$B$10=0,Бланк!$AI$2,Бланк!$AF$2),Данные!$C$11) -> 3250 | H12: =Данные!B$6 -> 2014-04-06 | I12: Превью А.jpg | J12: Логотип.png | K12: =K11+Данные!$B$5 -> 1000003001 | L12: =K12+Данные!$B$5-1 -> 1000003250
A13: -7 | B13: =Данные!B$2 -> Аптека "Омега" | C13: =Данные!B$3 -> 1833 | D13: =Данные!B$4 -> 1000 | E13: =Данные!B$5 -> 250 | F13: =MID(K13,IF(Данные!$B$10=0,Бланк!$AI$2,Бланк!$AF$2),Данные!$C$11) -> 3251 | G13: =MID(L13,IF(Данные!$B$10=0,Бланк!$AI$2,Бланк!$AF$2),Данные!$C$11) -> 3500 | H13: =Данные!B$6 -> 2014-04-06 | I13: Превью А.jpg | J13: Логотип.png | K13: =K12+Данные!$B$5 -> 1000003251 | L13: =K13+Данные!$B$5-1 -> 1000003500
A14: -8 | B14: =Данные!B$2 -> Аптека "Омега" | C14: =Данные!B$3 -> 1833 | D14: =Данные!B$4 -> 1000 | E14: =Данные!B$5 -> 250 | F14: =MID(K14,IF(Данные!$B$10=0,Бланк!$AI$2,Бланк!$AF$2),Данные!$C$11) -> 3501 | G14: =MID(L14,IF(Данные!$B$10=0,Бланк!$AI$2,Бланк!$AF$2),Данные!$C$11) -> 3750 | H14: =Данные!B$6 -> 2014-04-06 | I14: Превью А.jpg | J14: Логотип.png | K14: =K13+Данные!$B$5 -> 1000003501 | L14: =K14+Данные!$B$5-1 -> 1000003750
A15: -9 | B15: =Данные!B$2 -> Аптека "Омега" | C15: =Данные!B$3 -> 1833 | D15: =Данные!B$4 -> 1000 | E15: =Данные!B$5 -> 250 | F15: =MID(K15,IF(Данные!$B$10=0,Бланк!$AI$2,Бланк!$AF$2),Данные!$C$11) -> 3751 | G15: =MID(L15,IF(Данные!$B$10=0,Бланк!$AI$2,Бланк!$AF$2),Данные!$C$11) -> 4000 | H15: =Данные!B$6 -> 2014-04-06 | I15: Превью А.jpg | J15: Логотип.png | K15: =K14+Данные!$B$5 -> 1000003751 | L15: =K15+Данные!$B$5-1 -> 1000004000
A16: -10 | B16: =Данные!B$2 -> Аптека "Омега" | C16: =Данные!B$3 -> 1833 | D16: =Данные!B$4 -> 1000 | E16: =Данные!B$5 -> 250 | F16: =MID(K16,IF(Данные!$B$10=0,Бланк!$AI$2,Бланк!$AF$2),Данные!$C$11) -> 4001 | G16: =MID(L16,IF(Данные!$B$10=0,Бланк!$AI$2,Бланк!$AF$2),Данные!$C$11) -> 4250 | H16: =Данные!B$6 -> 2014-04-06 | I16: Превью А.jpg | J16: Логотип.png | K16: =K15+Данные!$B$5 -> 1000004001 | L16: =K16+Данные!$B$5-1 -> 1000004250
A17: -11 | B17: =Данные!B$2 -> Аптека "Омега" | C17: =Данные!B$3 -> 1833 | D17: =Данные!B$4 -> 1000 | E17: =Данные!B$5 -> 250 | F17: =MID(K17,IF(Данные!$B$10=0,Бланк!$AI$2,Бланк!$AF$2),Данные!$C$11) -> 4251 | G17: =MID(L17,IF(Данные!$B$10=0,Бланк!$AI$2,Бланк!$AF$2),Данные!$C$11) -> 4500 | H17: =Данные!B$6 -> 2014-04-06 | I17: Превью А.jpg | J17: Логотип.png | K17: =K16+Данные!$B$5 -> 1000004251 | L17: =K17+Данные!$B$5-1 -> 1000004500
A18: -12 | B18: =Данные!B$2 -> Аптека "Омега" | C18: =Данные!B$3 -> 1833 | D18: =Данные!B$4 -> 1000 | E18: =Данные!B$5 -> 250 | F18: =MID(K18,IF(Данные!$B$10=0,Бланк!$AI$2,Бланк!$AF$2),Данные!$C$11) -> 4501 | G18: =MID(L18,IF(Данные!$B$10=0,Бланк!$AI$2,Бланк!$AF$2),Данные!$C$11) -> 4750 | H18: =Данные!B$6 -> 2014-04-06 | I18: Превью А.jpg | J18: Логотип.png | K18: =K17+Данные!$B$5 -> 1000004501 | L18: =K18+Данные!$B$5-1 -> 1000004750
A19: -13 | B19: =Данные!B$2 -> Аптека "Омега" | C19: =Данные!B$3 -> 1833 | D19: =Данные!B$4 -> 1000 | E19: =Данные!B$5 -> 250 | F19: =MID(K19,IF(Данные!$B$10=0,Бланк!$AI$2,Бланк!$AF$2),Данные!$C$11) -> 4751 | G19: =MID(L19,IF(Данные!$B$10=0,Бланк!$AI$2,Бланк!$AF$2),Данные!$C$11) -> 5000 | H19: =Данные!B$6 -> 2014-04-06 | I19: Превью А.jpg | J19: Логотип.png | K19: =K18+Данные!$B$5 -> 1000004751 | L19: =K19+Данные!$B$5-1 -> 1000005000
A20: -14 | B20: =Данные!B$2 -> Аптека "Омега" | C20: =Данные!B$3 -> 1833 | D20: =Данные!B$4 -> 1000 | E20: =Данные!B$5 -> 250 | F20: =MID(K20,IF(Данные!$B$10=0,Бланк!$AI$2,Бланк!$AF$2),Данные!$C$11) -> 5001 | G20: =MID(L20,IF(Данные!$B$10=0,Бланк!$AI$2,Бланк!$AF$2),Данные!$C$11) -> 5250 | H20: =Данные!B$6 -> 2014-04-06 | I20: Превью А.jpg | J20: Логотип.png | K20: =K19+Данные!$B$5 -> 1000005001 | L20: =K20+Данные!$B$5-1 -> 1000005250
A21: -15 | B21: =Данные!B$2 -> Аптека "Омега" | C21: =Данные!B$3 -> 1833 | D21: =Данные!B$4 -> 1000 | E21: =Данные!B$5 -> 250 | F21: =MID(K21,IF(Данные!$B$10=0,Бланк!$AI$2,Бланк!$AF$2),Данные!$C$11) -> 5251 | G21: =MID(L21,IF(Данные!$B$10=0,Бланк!$AI$2,Бланк!$AF$2),Данные!$C$11) -> 5500 | H21: =Данные!B$6 -> 2014-04-06 | I21: Превью А.jpg | J21: Логотип.png | K21: =K20+Данные!$B$5 -> 1000005251 | L21: =K21+Данные!$B$5-1 -> 1000005500
A22: -16 | B22: =Данные!B$2 -> Аптека "Омега" | C22: =Данные!B$3 -> 1833 | D22: =Данные!B$4 -> 1000 | E22: =Данные!B$5 -> 250 | F22: =MID(K22,IF(Данные!$B$10=0,Бланк!$AI$2,Бланк!$AF$2),Данные!$C$11) -> 5501 | G22: =MID(L22,IF(Данные!$B$10=0,Бланк!$AI$2,Бланк!$AF$2),Данные!$C$11) -> 5750 | H22: =Данные!B$6 -> 2014-04-06 | I22: Превью А.jpg | J22: Логотип.png | K22: =K21+Данные!$B$5 -> 1000005501 | L22: =K22+Данные!$B$5-1 -> 1000005750
A23: -17 | B23: =Данные!B$2 -> Аптека "Омега" | C23: =Данные!B$3 -> 1833 | D23: =Данные!B$4 -> 1000 | E23: =Данные!B$5 -> 250 | F23: =MID(K23,IF(Данные!$B$10=0,Бланк!$AI$2,Бланк!$AF$2),Данные!$C$11) -> 5751 | G23: =MID(L23,IF(Данные!$B$10=0,Бланк!$AI$2,Бланк!$AF$2),Данные!$C$11) -> 6000 | H23: =Данные!B$6 -> 2014-04-06 | I23: Превью А.jpg | J23: Логотип.png | K23: =K22+Данные!$B$5 -> 1000005751 | L23: =K23+Данные!$B$5-1 -> 1000006000
A24: -18 | B24: =Данные!B$2 -> Аптека "Омега" | C24: =Данные!B$3 -> 1833 | D24: =Данные!B$4 -> 1000 | E24: =Данные!B$5 -> 250 | F24: =MID(K24,IF(Данные!$B$10=0,Бланк!$AI$2,Бланк!$AF$2),Данные!$C$11) -> 6001 | G24: =MID(L24,IF(Данные!$B$10=0,Бланк!$AI$2,Бланк!$AF$2),Данные!$C$11) -> 6250 | H24: =Данные!B$6 -> 2014-04-06 | I24: Превью А.jpg | J24: Логотип.png | K24: =K23+Данные!$B$5 -> 1000006001 | L24: =K24+Данные!$B$5-1 -> 1000006250
A25: -19 | B25: =Данные!B$2 -> Аптека "Омега" | C25: =Данные!B$3 -> 1833 | D25: =Данные!B$4 -> 1000 | E25: =Данные!B$5 -> 250 | F25: =MID(K25,IF(Данные!$B$10=0,Бланк!$AI$2,Бланк!$AF$2),Данные!$C$11) -> 6251 | G25: =MID(L25,IF(Данные!$B$10=0,Бланк!$AI$2,Бланк!$AF$2),Данные!$C$11) -> 6500 | H25: =Данные!B$6 -> 2014-04-06 | I25: Превью А.jpg | J25: Логотип.png | K25: =K24+Данные!$B$5 -> 1000006251 | L25: =K25+Данные!$B$5-1 -> 1000006500
A26: -20 | B26: =Данные!B$2 -> Аптека "Омега" | C26: =Данные!B$3 -> 1833 | D26: =Данные!B$4 -> 1000 | E26: =Данные!B$5 -> 250 | F26: =MID(K26,IF(Данные!$B$10=0,Бланк!$AI$2,Бланк!$AF$2),Данные!$C$11) -> 6501 | G26: =MID(L26,IF(Данные!$B$10=0,Бланк!$AI$2,Бланк!$AF$2),Данные!$C$11) -> 6750 | H26: =Данные!B$6 -> 2014-04-06 | I26: Превью А.jpg | J26: Логотип.png | K26: =K25+Данные!$B$5 -> 1000006501 | L26: =K26+Данные!$B$5-1 -> 1000006750

Sheet Бланк
A1: Название ТЗ | B1: Заказ № | C1: Тираж ТЗ | D1: Пластик А | E1: Пластик Б | F1: Поверхность А | G1: Поверхность Б | H1: Нумерация А | I1: Нумерация Б | J1: ШК А. Вид | K1: ШК А. Значение | L1: ШК Б. Вид | M1: ШК Б. Значение | N1: МП А. Вид | O1: МП А. Значение | P1: МП Б. Вид | Q1: МП Б. Значение | R1: Эмб А. Размер | S1: Эмб А. Значение | T1: Эмб А. Цвет | U1: Эмб Б. Размер | V1: Эмб Б. Значение | W1: Эмб Б. Цвет | X1: Дополнительно А | Y1: Дополнительно Б | Z1: Дата | AA1: @Превью А | AB1: @Превью Б | AC1: @Логотип | AD1: @Подпись | AE1: Пустота | AF1: Нум А Отступ слева | AG1: Нумерация от А | AH1: Нумерация до А | AI1: Нум Б Отступ слева | AJ1: Нумерация от Б | AK1: Нумерация до Б
A2: =Данные!$B$2 -> Аптека "Омега" | B2: =Данные!$B$3 -> 1833 | C2: =Данные!$B$4 -> 1000 | D2: =IF(Данные!$B$8=0,AE2,Данные!$B$8) -> — | E2: =IF(Данные!$C$8=0,AE2,Данные!$C$8) -> — | F2: =IF(Данные!$B$9=0,AE2,Данные!$B$9) -> — | G2: =IF(Данные!$C$9=0,AE2,Данные!$C$9) -> — | H2: =IF(Данные!$B$10=0,AE2,CONCATENATE(MID(AG2,AF2,Данные!B11),"–",MID(AH2,AF2,Данные!B11))) -> — | I2: =IF(Данные!$C$10=0,AE2,CONCATENATE(MID(AJ2,AI2,Данные!C11),"–",MID(AK2,AI2,Данные!C11))) -> 0501–1500 | J2: =IF(Данные!$B$12=0,Бланк!$AE$2,"EAN-13") -> — | K2: =IF(Данные!$B$12=0,AE2,CONCATENATE(CONCATENATE(Данные!$B$12+Данные!$B$10,"к")," - ",CONCATENATE(Данные!$B$12+Данные!$B$10+Данные!$B$4-1,"к"))) -> — | L2: =IF(Данные!$C$12=0,Бланк!$AE$2,"EAN-13") -> EAN-13 | M2: =IF(Данные!$C$12=0,AE2,CONCATENATE(CONCATENATE(Данные!$C$12+Данные!$C$10,"к"),"–",CONCATENATE(Данные!$C$12+Данные!$C$10+Данные!$B$4-1,"к"))) -> 290121000501к–290121001500к | N2: =IF(Данные!$B$14=0,Бланк!$AE$2,"HiCo") -> — | O2: =IF(Данные!$B$14=0,AE2,CONCATENATE(Данные!$B$14+Данные!$B$10," - ",Данные!$B$14+Данные!$B$10+Данные!$B$4-1)) -> — | P2: =IF(Данные!$C$14=0,Бланк!$AE$2,"HiCo") -> HiCo | Q2: =IF(Данные!$C$14=0,AE2,CONCATENATE(Данные!$C$14+Данные!$C$10,"–",Данные!$C$14+Данные!$C$10+Данные!$B$4-1)) -> 290121000501–290121001500 | R2: =IF(Данные!$B$15=0,AE2,Данные!$B$15) -> — | S2: =IF(Данные!$B$16=0,AE2,Данные!$B$16) -> — | T2: =IF(Данные!$B$17=0,AE2,Данные!$B$17) -> — | U2: =IF(Данные!$C$15=0,AE2,Данные!$C$15) -> — | V2: =IF(Данные!$C$16=0,AE2,Данные!$C$16) -> — | W2: =IF(Данные!$C$17=0,AE2,Данные!$C$17) -> — | X2: =IF(Данные!$B$18=0,AE2,Данные!$B$18) -> — | Y2: =IF(Данные!$C$18=0,AE2,Данные!$C$18) -> — | Z2: =Данные!$B$6 -> 2014-04-06 | AA2: Превью А.jpg | AB2: Превью Б.jpg | AC2: Логотип.png | AD2: Подпись.png | AE2: — | AF2: =IF(Данные!B11=3,8,IF(Данные!B11=4,7,IF(Данные!B11=5,6,IF(Данные!B11=6,5,IF(Данные!B11=7,4,IF(Данные!B11=8,3,IF(Данные!B11=9,2,0))))))) -> 0 | AG2: =1000000000+Данные!$B$10 -> 1000000000 | AH2: =1000000000+Данные!$B$10+Данные!$B$4-1 -> 1000000999 | AI2: =IF(Данные!C11=3,8,IF(Данные!C11=4,7,IF(Данные!C11=5,6,IF(Данные!C11=6,5,IF(Данные!C11=7,4,IF(Данные!C11=8,3,IF(Данные!C11=9,2,0))))))) -> 7 | AJ2: =1000000000+Данные!$C$10 -> 1000000501 | AK2: =1000000000+Данные!$C$10+Данные!$B$4-1 -> 1000001500
